bitfinex-derivatives/quotes_BTCF0:USTF0_20241210
["timestamp","ask_amount","ask_price","bid_price","bid_amount"]
[1733845474934,0.051889,96426.0,96417.0,0.051834]
[1733845475140,0.051889,96426.0,96406.0,0.01116973]
[1733845475141,0.051831,96423.0,96410.0,0.051838]
[1733845475329,0.051831,96423.0,96395.0,0.3608]
[1733845475330,0.36086,96421.0,96384.0,0.3608]
[1733845475529,0.051847,96394.0,96386.0,0.051851]
[1733845475739,6e-05,96385.0,96384.0,0.412652]
[1733845476128,0.694,96459.0,96384.0,0.412652]
[1733845476129,0.3608,96429.0,96384.0,0.6608]
[1733845476335,0.3608,96440.0,96419.0,0.3608]
[1733845476633,0.051824,96437.0,96428.0,0.00012]
[1733845476836,0.3608,96432.0,96428.0,0.00012]
[1733845477036,0.051828,96430.0,96428.0,0.00012]
[1733845477931,0.001,96429.0,96428.0,0.00012]
[1733845478443,0.001,96429.0,96400.0,0.00155607]
[1733845478631,0.3608,96415.0,96400.0,0.00155607]
[1733845478830,6e-05,96402.0,96401.0,0.05193036]
[1733845479245,6e-05,96402.0,96401.0,8.836e-05]
[1733845480133,6e-05,96402.0,96401.0,0.00408836]
[1733845481343,6e-05,96402.0,96401.0,0.00308836]
[1733845482633,0.00106,96402.0,96401.0,0.00408836]
[1733845483163,0.3608,96445.0,96436.0,0.051824]
[1733845483334,0.051812,96459.0,96438.0,0.051823]
[1733845483538,0.3608,96463.0,96438.0,0.051943]
[1733845483831,0.00132,96451.0,96438.0,0.051943]
[1733845484036,5.2e-07,96439.0,96438.0,0.351943]
[1733845484340,0.3608,96481.0,96438.0,0.351943]
[1733845484341,0.051796,96489.0,96472.0,0.051805]
[1733845484649,0.051792,96496.0,96488.0,0.00012]
[1733845484946,0.1,96500.0,96495.0,0.00012]
[1733845485140,8.717e-05,96497.0,96495.0,0.00012]
[1733845485340,8.717e-05,96497.0,96493.0,0.051793]
[1733845485544,8.717e-05,96497.0,96496.0,0.051792]
[1733845487046,0.00108717,96497.0,96496.0,0.051792]
[1733845487447,0.36132001,96540.0,96499.0,0.05179]
[1733845487744,0.3608,96540.0,96526.0,0.051776]
[1733845488354,0.05189308,96539.0,96521.0,0.3608]
[1733845488648,0.00012408,96539.0,96510.0,0.3608]
[1733845488851,0.051774,96530.0,96510.0,0.37189118]
[1733845489053,6e-05,96511.0,96510.0,0.37189118]
[1733845489237,6e-05,96511.0,96510.0,0.36073]
[1733845490442,0.00412408,96539.0,96510.0,0.36073]
[1733845490646,0.00412408,96539.0,96522.0,0.051778]
[1733845490842,0.00412408,96539.0,96538.0,0.00012]
[1733845491241,0.00012408,96539.0,96538.0,0.00012]
[1733845491646,0.00212408,96539.0,96538.0,0.00012]
[1733845492045,0.01112408,96539.0,96538.0,0.00112]
[1733845492452,0.06289308,96539.0,96538.0,0.00112]
[1733845493348,0.06889308,96539.0,96538.0,0.00212]
[1733845494045,0.01712408,96539.0,96538.0,0.00212]
[1733845494246,0.01712408,96539.0,96538.0,0.36292]
[1733845494649,0.01712408,96539.0,96538.0,0.00212]
[1733845495153,0.01712408,96539.0,96538.0,0.36292]
[1733845495354,0.01712408,96539.0,96538.0,0.414689]
[1733845496551,0.01312408,96539.0,96538.0,0.413689]
[1733845497052,0.01312408,96539.0,96538.0,0.36192]
[1733845497263,0.00912408,96539.0,96538.0,0.36192]
[1733845497458,0.01112408,96539.0,96538.0,0.36192]
[1733845497648,0.01112408,96539.0,96538.0,0.413689]
[1733845497952,0.21448161,96560.0,96538.0,0.00023669]
[1733845498159,0.051761,96555.0,96538.0,0.00023669]
[1733845498357,0.21448161,96550.0,96538.0,0.00011669]
[1733845498661,0.21448161,96560.0,96544.0,0.412566]
[1733845498858,9.528e-05,96559.0,96544.0,0.3608]
[1733845499248,9.528e-05,96559.0,96545.0,0.051765]
[1733845499445,9.528e-05,96559.0,96547.0,0.051764]
[1733845499658,9.528e-05,96559.0,96544.0,0.3608]
[1733845499848,0.003,96555.0,96544.0,0.3608]
[1733845500048,6e-05,96545.0,96544.0,0.3608]
[1733845502153,0.00106,96545.0,96544.0,0.3608]
[1733845503457,6e-05,96545.0,96544.0,0.3618]
[1733845503648,6e-05,96545.0,96544.0,0.001]
[1733845504954,0.00106,96545.0,96544.0,0.012]
[1733845505553,9.528e-05,96559.0,96558.0,0.051759]
[1733845505755,0.3608,96606.0,96562.0,0.051756]
[1733845506060,0.3608,96606.0,96589.0,0.3608]
[1733845506259,0.3608,96615.0,96589.0,0.3608]
[1733845506454,0.3608,96615.0,96594.0,0.051739]
[1733845506658,0.00010768,96599.0,96594.0,0.051739]
[1733845507262,0.00010768,96599.0,96597.0,0.3608]
[1733845508050,0.051741,96590.0,96589.0,0.3608]
[1733845508365,0.051801,96590.0,96577.0,0.3608]
[1733845508563,6e-05,96590.0,96577.0,0.3608]
[1733845508866,0.21448161,96590.0,96577.0,0.3608]
[1733845509165,0.00110768,96599.0,96592.0,0.05174]
[1733845509360,0.00110768,96599.0,96589.0,0.3608]
[1733845509549,0.00010768,96599.0,96598.0,0.36092]
[1733845509754,0.00210768,96599.0,96598.0,0.36092]
[1733845510057,0.3608,96615.0,96598.0,0.36092]
[1733845510363,0.5,104540.0,96614.0,0.7216]
[1733845510364,0.051711,96647.0,96614.0,0.7216]
[1733845510659,0.21448161,96660.0,96646.0,0.00012]
[1733845510861,0.051711,96647.0,96646.0,0.00012]
[1733845511061,0.051713,96644.0,96641.0,0.3608]
[1733845511255,0.051714,96643.0,96641.0,0.3608]
[1733845511551,0.81006,96642.0,96641.0,0.3608]
[1733845511957,0.00308541,96647.0,96646.0,0.001]
[1733845512154,0.3608,96692.0,96646.0,0.001]
[1733845512360,0.01116295,96692.0,96666.0,0.3608]
[1733845512554,0.051696,96675.0,96666.0,0.3608]
[1733845512757,0.3,96692.0,96666.0,0.3608]
[1733845513067,0.2552,96699.0,96666.0,0.3608]
[1733845513068,0.051693,96681.0,96675.0,0.3608]
[1733845513267,0.02044446,96688.0,96675.0,0.3608]
[1733845513561,0.05169,96687.0,96686.0,0.3608]
[1733845513765,0.0001219,96691.0,96686.0,0.3608]
[1733845514359,0.0001219,96691.0,96690.0,0.412488]
[1733845514859,0.0012704,96691.0,96690.0,0.412488]
[1733845515560,0.0012704,96691.0,96690.0,0.3608]
[1733845516172,0.0012704,96691.0,96690.0,0.3618]
[1733845516559,0.7602704,96691.0,96690.0,0.3628]
[1733845517060,0.7602704,96691.0,96690.0,0.36797116]
[1733845517265,0.7512704,96691.0,96690.0,0.36697116]
[1733845517464,0.7522704,96691.0,96690.0,0.36597116]
[1733845517672,0.0022704,96691.0,96690.0,0.36597116]
[1733845518267,0.0042704,96691.0,96690.0,0.36597116]
[1733845518462,0.0042704,96691.0,96690.0,0.41765916]
[1733845518671,0.0042704,96691.0,96690.0,0.36597116]
[1733845519167,0.0559574,96691.0,96690.0,0.36597116]
[1733845519560,0.0559574,96691.0,96690.0,0.00517116]
[1733845519757,0.051691,96684.0,96683.0,0.00010495]
[1733845519964,0.0011485,96684.0,96659.0,0.3608]
[1733845520167,0.0011485,96684.0,96658.0,0.3608]
[1733845520168,0.051703,96662.0,96658.0,0.3608]
[1733845520363,0.051703,96662.0,96660.0,0.00517277]
[1733845520964,0.0011485,96661.0,96660.0,0.00517277]
[1733845521955,0.2385,96707.0,96670.0,0.051698]
[1733845521956,0.0021219,96691.0,96670.0,0.051698]
[1733845522262,0.0021219,96691.0,96690.0,0.00012]
[1733845522572,0.0001219,96691.0,96690.0,0.00012]
[1733845522962,0.00153951,96691.0,96690.0,0.00012]
[1733845523765,0.2385,96735.0,96690.0,0.00012]
[1733845523766,0.051671,96722.0,96699.0,0.051683]
[1733845523966,0.3608,96743.0,96708.0,0.3608]
[1733845523967,0.051673,96719.0,96708.0,0.3608]
[1733845524166,0.02577961,96736.0,96708.0,0.3608]
[1733845524362,0.3608,96725.0,96708.0,0.3608]
[1733845524565,0.051683,96699.0,96698.0,0.3608]
[1733845524775,0.0517554,96699.0,96698.0,0.3608]
[1733845524964,0.0518154,96699.0,96698.0,0.3608]
[1733845525366,0.0518154,96699.0,96698.0,0.3368382]
[1733845526064,0.051684,96698.0,96687.0,0.3608]
[1733845526267,0.0001324,96699.0,96687.0,0.3608]
[1733845526464,0.051749,96688.0,96687.0,0.3608]
[1733845526968,0.051749,96688.0,96679.0,0.3608]
[1733845526969,0.05169,96687.0,96679.0,0.3608]
[1733845527170,0.051693,96681.0,96679.0,0.3608]
[1733845527475,6e-05,96680.0,96679.0,0.3608]
[1733845528076,0.36086,96680.0,96671.0,0.00517218]
[1733845528368,0.051758,96672.0,96671.0,0.00517218]
[1733845528763,0.05317598,96672.0,96671.0,0.00517218]
[1733845529365,0.05317598,96672.0,96671.0,1.8e-07]
[1733845529366,0.71409241,96672.0,96671.0,1.8e-07]
[1733845529665,0.051702,96664.0,96654.0,0.051707]
[1733845529869,0.00141798,96659.0,96657.0,0.051705]
[1733845530073,0.00141798,96659.0,96658.0,0.3608]
[1733845531875,0.00141798,96659.0,96658.0,0.007]
[1733845532477,0.00141798,96659.0,96658.0,0.01]
[1733845533069,0.00141798,96659.0,96658.0,0.007]
[1733845533469,0.051709,96650.0,96649.0,0.00517335]
[1733845533879,0.00141798,96650.0,96649.0,0.00517335]
[1733845534875,0.05312698,96650.0,96649.0,0.00517335]
[1733845535080,0.05320263,96650.0,96649.0,0.00517335]
[1733845535279,0.05320263,96650.0,96649.0,0.00617335]
[1733845536076,0.00149363,96650.0,96649.0,0.00517335]
[1733845536279,0.00449363,96650.0,96649.0,0.00517335]
[1733845536484,0.00449363,96650.0,96649.0,0.00840706]
[1733845536782,0.001,96659.0,96658.0,0.051705]
[1733845536976,0.051691,96686.0,96675.0,0.051696]
[1733845537179,0.051683,96700.0,96688.0,0.051689]
[1733845537381,0.15226952,96703.0,96688.0,0.051689]
[1733845537679,0.15226952,96703.0,96688.0,0.05504138]
[1733845537881,0.09149552,96689.0,96688.0,0.05504138]
[1733845538469,0.09149552,96689.0,96688.0,0.06575703]
[1733845539484,0.09291331,96689.0,96688.0,0.06575703]
[1733845539779,0.09291331,96689.0,96688.0,0.00335238]
[1733845539971,0.0015516,96689.0,96688.0,0.00435238]
[1733845540379,0.3015516,96689.0,96670.0,0.3608]
[1733845540576,0.051698,96671.0,96670.0,0.3608]
[1733845540786,0.3608,96678.0,96670.0,0.3608]
[1733845540977,0.3608,96678.0,96661.0,0.01097357]
[1733845540978,6e-05,96671.0,96661.0,0.01097357]
[1733845541174,0.00141779,96680.0,96670.0,0.051699]
[1733845541381,0.00013381,96689.0,96679.0,0.3608]
[1733845541579,0.00013381,96689.0,96688.0,0.3618]
[1733845542583,0.00013381,96689.0,96688.0,0.60856966]
[1733845542781,0.00013381,96689.0,96688.0,0.413489]
[1733845542985,0.00013381,96689.0,96688.0,0.42461273]
[1733845543690,0.00013381,96689.0,96688.0,0.37292373]
[1733845543892,0.00013381,96689.0,96688.0,0.3618]
[1733845544090,0.00013381,96689.0,96688.0,0.3608]
[1733845544988,0.00013381,96689.0,96688.0,0.37147326]
[1733845545182,0.00403381,96689.0,96688.0,0.37147326]
[1733845545789,0.00013381,96689.0,96688.0,0.37147326]
[1733845545989,0.00403381,96689.0,96688.0,0.37147326]
[1733845546187,0.00403381,96689.0,96688.0,0.37647326]
[1733845547096,0.05572181,96689.0,96688.0,0.001]
[1733845547296,0.051691,96685.0,96684.0,0.24666718]
[1733845547693,1.41086,96685.0,96667.0,0.3045657]
[1733845548000,0.05176,96668.0,96667.0,0.31544374]
[1733845548386,0.35185361,96668.0,96666.0,7e-07]
[1733845548590,0.051711,96647.0,96646.0,0.0109705]
[1733845548790,0.051711,96647.0,96633.0,0.00076]
[1733845548791,0.051714,96642.0,96633.0,0.00076]
[1733845548996,6e-05,96647.0,96643.0,0.051713]
[1733845549200,0.12181561,96650.0,96646.0,0.3608]
[1733845549387,0.12181561,96662.0,96661.0,0.051703]
[1733845549587,0.12571561,96667.0,96663.0,0.051702]
[1733845549789,0.0039,96667.0,96663.0,0.051702]
[1733845550105,0.0039,96667.0,96666.0,0.00012]
[1733845550999,9.361e-05,96668.0,96666.0,0.00012]
[1733845551390,9.361e-05,96668.0,96667.0,0.00012]
[1733845551999,0.30009361,96668.0,96639.0,0.3608]
[1733845552204,0.051715,96640.0,96639.0,0.3608]
[1733845553694,0.051719,96632.0,96631.0,0.00010337]
[1733845554108,0.051779,96632.0,96631.0,0.00010337]
[1733845554803,0.051723,96624.0,96605.0,0.3608]
[1733845555002,0.051733,96606.0,96605.0,0.3608]
[1733845555500,0.051733,96606.0,96599.0,0.051736]
[1733845555698,0.051734,96604.0,96599.0,0.051736]
[1733845555903,0.051738,96597.0,96595.0,0.3608]
[1733845556305,6e-05,96596.0,96595.0,0.3608]
[1733845556700,0.36086,96596.0,96577.0,0.3608]
[1733845557009,0.051808,96578.0,96577.0,0.3608]
[1733845557899,0.051808,96578.0,96572.0,0.01077344]
[1733845558203,0.051811,96573.0,96572.0,8.436e-05]
[1733845558705,0.05192187,96573.0,96572.0,8.436e-05]
[1733845559603,0.051758,96559.0,96558.0,0.00012]
[1733845559795,0.051764,96548.0,96542.0,0.3608]
[1733845559994,0.051761,96555.0,96545.0,0.051766]
[1733845560204,0.051761,96555.0,96554.0,0.3608]
[1733845560398,0.051761,96555.0,96554.0,0.00012]
[1733845560612,0.3,96555.0,96532.0,0.3608]
[1733845560809,0.3608,96538.0,96522.0,0.00010112]
[1733845561109,0.21448161,96532.0,96528.0,0.3608]
[1733845561407,0.3608,96546.0,96528.0,0.3608]
[1733845561604,0.21448161,96540.0,96522.0,0.00010112]
[1733845561805,0.051777,96524.0,96522.0,0.00010112]
[1733845562010,6e-05,96523.0,96522.0,0.00010112]
[1733845563995,0.001,96532.0,96528.0,0.009]
[1733845564201,0.001,96532.0,96531.0,0.3608]
[1733845564817,0.051772,96533.0,96531.0,0.3608]
[1733845565202,0.051772,96533.0,96532.0,0.00012]
[1733845566411,0.051774,96529.0,96528.0,0.001]
[1733845566715,0.051774,96529.0,96487.0,0.3608]
[1733845566716,0.051789,96501.0,96487.0,0.3608]
[1733845567202,0.051789,96501.0,96478.0,0.3608]
[1733845567203,0.05179,96499.0,96478.0,0.3608]
[1733845567402,0.05179,96499.0,96488.0,0.3608]
[1733845567602,0.3608,96516.0,96488.0,0.3608]
[1733845567603,0.051785,96509.0,96498.0,0.3608]
[1733845567813,0.051785,96509.0,96508.0,0.3608]
[1733845568109,9.84e-05,96528.0,96508.0,0.36092]
[1733845568320,9.84e-05,96528.0,96526.0,0.412575]
[1733845568519,9.84e-05,96528.0,96527.0,0.24062]
[1733845568811,9.84e-05,96528.0,96527.0,0.00012]
[1733845569199,0.051782,96516.0,96476.0,0.051802]
[1733845569409,0.051782,96516.0,96453.0,0.3608]
[1733845569410,0.3608,96489.0,96475.0,0.01260066]
[1733845569711,0.00015801,96489.0,96475.0,7.641e-05]
[1733845569900,0.00015801,96489.0,96488.0,0.054796]
[1733845570103,0.00015801,96489.0,96488.0,0.0657894]
[1733845570415,0.3608,96517.0,96505.0,0.051787]
[1733845570599,0.3608,96517.0,96510.0,0.051784]
[1733845570803,0.412581,96517.0,96516.0,0.00012]
[1733845571407,0.41268881,96517.0,96516.0,0.00012]
[1733845571803,0.00010781,96517.0,96481.0,0.02040052]
[1733845572008,0.21448161,96491.0,96476.0,0.051802]
[1733845572204,6e-05,96482.0,96475.0,0.36243123]
[1733845572508,6e-05,96476.0,96475.0,0.36243123]
[1733845572814,6e-05,96476.0,96475.0,0.00163123]
[1733845574214,0.05197976,96476.0,96475.0,7.641e-05]
[1733845574611,0.05197976,96476.0,96475.0,0.00507641]
[1733845574814,0.41277976,96476.0,96475.0,0.00507641]
[1733845575109,0.41377976,96476.0,96475.0,0.009]
[1733845575707,0.051803,96475.0,96447.0,0.3608]
[1733845575908,0.051816,96452.0,96447.0,0.412618]
[1733845576108,6e-05,96448.0,96447.0,0.412618]
[1733845576820,6e-05,96448.0,96447.0,0.3608]
[1733845578212,6e-05,96448.0,96447.0,0.3648]
[1733845579014,6e-05,96448.0,96447.0,0.004]
[1733845579521,0.36086,96448.0,96447.0,0.004]
[1733845579831,0.36086,96448.0,96430.0,9.683e-05]
[1733845579832,0.66086,96448.0,96430.0,9.683e-05]
[1733845580024,0.051838,96410.0,96378.0,0.3608]
[1733845580315,0.21448161,96416.0,96391.0,0.01098767]
[1733845580316,6e-05,96401.0,96391.0,0.01098767]
[1733845580511,6e-05,96401.0,96400.0,0.151843]
[1733845580711,0.21448161,96420.0,96400.0,0.1]
[1733845580917,0.21448161,96410.0,96400.0,0.1]
[1733845581110,0.05184,96408.0,96400.0,0.1]
[1733845581306,0.21448161,96410.0,96400.0,0.1]
[1733845581503,0.051838,96410.0,96401.0,0.2495]
[1733845581706,0.3608,96408.0,96400.0,0.102]
[1733845581910,0.051842,96402.0,96400.0,0.102]
[1733845582116,6e-05,96401.0,96400.0,0.102]
[1733845582304,0.051854,96380.0,96365.0,0.8636]
[1733845582509,0.051856,96378.0,96366.0,0.3608]
[1733845582909,0.3608,96387.0,96365.0,0.5028]
[1733845582910,0.051858,96372.0,96365.0,0.5137939]
[1733845583109,0.00012919,96377.0,96365.0,0.5028]
[1733845583308,0.00012919,96377.0,96374.0,0.3608]
[1733845583604,0.00012919,96377.0,96376.0,0.00012]
[1733845583825,0.3608,96406.0,96384.0,0.051852]
[1733845584118,0.3608,96406.0,96374.0,0.6608]
[1733845584119,0.3608,96401.0,96387.0,0.3608]
[1733845584319,0.21448161,96400.0,96387.0,0.3608]
[1733845584515,0.051839,96409.0,96387.0,0.3608]
[1733845584717,0.00011981,96408.0,96388.0,0.05185]
[1733845585106,0.00011981,96408.0,96395.0,0.3608]
[1733845585315,0.05184,96406.0,96384.0,0.3608]
[1733845585516,0.051845,96397.0,96376.0,0.37152446]
[1733845585818,6e-05,96385.0,96376.0,0.37152446]
[1733845586019,6e-05,96385.0,96384.0,0.3608]
[1733845586420,6e-05,96385.0,96377.0,0.00518795]
[1733845586919,6e-05,96378.0,96377.0,0.00518795]
[1733845587912,6e-05,96378.0,96377.0,0.01018795]
[1733845588922,0.00206,96378.0,96377.0,0.01018795]
[1733845589120,0.00206,96378.0,96377.0,0.02125458]
[1733845589421,6e-05,96385.0,96377.0,0.37311058]
[1733845589622,0.21448161,96420.0,96377.0,0.37311058]
[1733845589623,0.051831,96423.0,96384.0,0.3608]
[1733845589811,0.21448161,96450.0,96407.0,0.3608]
[1733845590015,0.051818,96447.0,96418.0,0.051833]
[1733845590329,0.051827,96431.0,96418.0,0.3608]
[1733845590822,0.26630361,96440.0,96418.0,0.3608]
[1733845591028,0.00010981,96430.0,96427.0,0.3608]
[1733845591219,0.00010981,96430.0,96427.0,0.412629]
[1733845592024,0.02047695,96457.0,96427.0,0.6608]
[1733845592213,0.02047695,96457.0,96444.0,0.3608]
[1733845592414,0.02047695,96457.0,96456.0,0.00012]
[1733845592615,0.051804,96473.0,96456.0,0.00012]
[1733845592819,0.05181,96463.0,96456.0,0.00012]
[1733845593021,0.00012853,96462.0,96456.0,0.00012]
[1733845593723,0.00012853,96462.0,96453.0,0.3608]
[1733845594123,0.00012853,96462.0,96461.0,0.3608]
[1733845594811,0.051813,96456.0,96445.0,0.2415]
[1733845595014,0.05182,96445.0,96443.0,0.3608]
[1733845595320,0.051824,96436.0,96434.0,0.00010105]
[1733845595626,0.36086,96435.0,96434.0,0.00010105]
[1733845597121,0.36098332,96435.0,96434.0,0.00010105]
[1733845597323,0.36198332,96435.0,96434.0,0.005]
[1733845597623,0.051833,96420.0,96404.0,0.051841]
[1733845597816,0.3608,96416.0,96404.0,0.051841]
[1733845598017,6e-05,96405.0,96404.0,0.051841]
[1733845598218,6e-05,96405.0,96404.0,0.412641]
[1733845598721,6e-05,96405.0,96404.0,0.3608]
[1733845599428,6e-05,96405.0,96395.0,0.3608]
[1733845599724,0.051841,96405.0,96404.0,0.007]
[1733845599925,0.3608,96425.0,96404.0,0.007]
[1733845600123,0.051829,96427.0,96415.0,0.412635]
[1733845600315,0.3608,96438.0,96424.0,0.3608]
[1733845600316,0.00012332,96435.0,96424.0,0.3608]
[1733845600520,0.00012332,96435.0,96426.0,0.051829]
[1733845600719,0.00012332,96435.0,96434.0,0.00012]
[1733845600922,0.05194832,96435.0,96434.0,0.00012]
[1733845602223,0.00012332,96435.0,96434.0,0.36092]
[1733845602525,0.12334708,96462.0,96434.0,0.66092]
[1733845602714,0.051808,96466.0,96452.0,0.3608]
[1733845602917,0.21448161,96470.0,96444.0,0.3608]
[1733845602918,0.051814,96456.0,96444.0,0.3608]
[1733845603131,0.21448161,96470.0,96452.0,0.3608]
[1733845603319,0.051807,96467.0,96452.0,0.3608]
[1733845603527,0.051809,96465.0,96452.0,0.3608]
[1733845603721,0.051809,96465.0,96448.0,0.051817]
[1733845603722,0.3608,96457.0,96442.0,0.3608]
[1733845603919,0.051815,96454.0,96442.0,0.3608]
[1733845604127,6e-05,96443.0,96442.0,0.3608]
[1733845604325,6e-05,96443.0,96423.0,0.3608]
[1733845604521,0.3608,96428.0,96400.0,0.1974]
[1733845604721,0.412634,96418.0,96406.0,0.04021797]
[1733845604924,0.00010631,96417.0,96416.0,7.3e-07]
[1733845605119,0.00010631,96417.0,96391.0,0.48735697]
[1733845605322,0.41264,96406.0,96405.0,1e-08]
[1733845605526,0.41264,96406.0,96384.0,1e-08]
[1733845605527,0.051851,96385.0,96384.0,1e-08]
[1733845605717,0.051857,96375.0,96350.0,0.3608]
[1733845605923,0.412657,96375.0,96351.0,0.051869]
[1733845606331,0.21448161,96384.0,96358.0,0.3608]
[1733845606624,0.36086,96375.0,96341.0,8.089e-05]
[1733845606825,0.051864,96361.0,96341.0,8.089e-05]
[1733845607026,0.7216,96347.0,96346.0,0.63031543]
[1733845607233,0.7217331,96347.0,96341.0,8.089e-05]
[1733845607420,0.051875,96342.0,96341.0,8.089e-05]
[1733845607620,0.351935,96342.0,96341.0,8.089e-05]
[1733845607822,0.051935,96342.0,96341.0,8.089e-05]
[1733845608027,6e-05,96342.0,96341.0,0.05195589]
[1733845608325,6e-05,96342.0,96341.0,8.089e-05]
[1733845608525,0.00706,96342.0,96341.0,0.00108089]
[1733845608918,7.31e-05,96347.0,96341.0,0.20108089]
[1733845609124,0.33871806,96351.0,96350.0,0.05187]
[1733845609324,0.24627468,96362.0,96355.0,0.051828]
[1733845609526,0.24627468,96362.0,96354.0,0.3608]
[1733845609838,6e-05,96355.0,96354.0,0.412668]
[1733845610029,0.00013291,96355.0,96354.0,0.412668]
[1733845610329,0.13734575,96369.0,96368.0,0.051861]
[1733845610535,6e-05,96375.0,96368.0,0.3608]
[1733845610729,6e-05,96375.0,96374.0,0.051857]
[1733845611232,0.00013327,96375.0,96374.0,0.051857]
[1733845611625,0.3608,96397.0,96368.0,0.36092]
[1733845611826,0.3608,96397.0,96395.0,0.051846]
[1733845612027,0.57528161,96400.0,96396.0,0.00012]
[1733845612328,0.57528161,96400.0,96399.0,0.00012]
[1733845612525,0.3608,96400.0,96399.0,0.00012]
[1733845612733,0.36087371,96400.0,96399.0,0.00012]
[1733845613128,7.371e-05,96400.0,96399.0,0.00012]
[1733845614134,0.23343624,96400.0,96399.0,0.00012]
[1733845614731,0.23443624,96400.0,96399.0,0.00012]
[1733845615335,0.28627924,96400.0,96399.0,0.00012]
[1733845615532,0.28827924,96400.0,96399.0,0.00012]
[1733845615933,0.28727924,96400.0,96399.0,0.00012]
[1733845616138,0.28927924,96400.0,96399.0,0.00012]
[1733845617548,0.55546597,96400.0,96399.0,0.00012]
[1733845617931,0.28927924,96400.0,96399.0,0.00012]
[1733845618133,0.23743624,96400.0,96368.0,0.00012]
[1733845618333,0.3608,96374.0,96368.0,0.00012]
[1733845618736,0.05186,96370.0,96368.0,0.00012]
[1733845619339,0.05186,96370.0,96368.0,0.00312]
[1733845619537,0.00011837,96369.0,96347.0,0.00155682]
[1733845619739,0.21448161,96357.0,96355.0,0.051868]
[1733845619942,0.3608,96356.0,96355.0,0.051868]
[1733845620636,0.3608,96356.0,96347.0,0.00155682]
[1733845620637,0.3608,96364.0,96350.0,0.3608]
[1733845620837,0.3608,96364.0,96363.0,0.051863]
[1733845621032,0.3608,96364.0,96363.0,0.00012]
[1733845621538,0.051871,96348.0,96347.0,0.00155682]
[1733845621845,0.051874,96343.0,96314.0,0.01107223]
[1733845622033,0.3608,96339.0,96314.0,0.01107223]
[1733845622238,0.412679,96334.0,96314.0,0.051889]
[1733845622541,0.412679,96334.0,96291.0,0.2052]
[1733845622542,0.051889,96316.0,96291.0,0.2052]
[1733845622842,0.15386681,96306.0,96305.0,0.051895]
[1733845623144,0.21448161,96311.0,96296.0,0.01071325]
[1733845623145,0.39912179,96311.0,96296.0,0.01071325]
[1733845623349,0.15381606,96302.0,96301.0,0.051897]
[1733845623641,0.15381606,96305.0,96304.0,0.051895]
[1733845624049,0.15381606,96305.0,96304.0,0.28594146]
[1733845624244,0.15381606,96305.0,96304.0,0.351895]
[1733845624438,0.15381606,96313.0,96312.0,0.051891]
[1733845624639,0.15381606,96319.0,96318.0,0.051888]
[1733845624855,0.33845624,96322.0,96321.0,0.051886]
[1733845625042,0.23541075,96338.0,96329.0,0.051881]
[1733845625245,0.24894928,96338.0,96321.0,0.00012]
[1733845625448,0.412685,96322.0,96321.0,0.00012]
[1733845625744,0.65441303,96322.0,96321.0,0.00012]
[1733845626244,0.66847157,96322.0,96321.0,0.00012]
[1733845626443,0.89047656,96322.0,96321.0,0.00012]
[1733845626645,0.89059189,96322.0,96321.0,0.00012]
[1733845626946,0.051893,96308.0,96300.0,0.1]
[1733845627146,0.83158689,96322.0,96300.0,0.1]
[1733845627147,0.412697,96301.0,96300.0,0.1]
[1733845627441,0.46322116,96301.0,96300.0,0.1]
[1733845627644,0.4701597,96301.0,96300.0,0.1]
[1733845627839,0.4182627,96301.0,96300.0,0.1]
[1733845628239,0.1093597,96301.0,96300.0,0.1]
[1733845628442,0.05889554,96301.0,96300.0,0.1]
[1733845628748,0.051957,96301.0,96300.0,0.09306146]
[1733845629637,0.051957,96301.0,96300.0,0.02306146]
[1733845629638,6e-05,96301.0,96300.0,0.02306146]
[1733845629847,1e-06,96301.0,96300.0,0.02306146]
[1733845630250,8.7e-07,96307.0,96306.0,0.051894]
[1733845630455,8.7e-07,96307.0,96306.0,0.412694]
[1733845630749,8.7e-07,96307.0,96306.0,0.712814]
[1733845631850,0.38422088,96322.0,96321.0,0.051886]
[1733845632142,0.30784705,96329.0,96328.0,0.051882]
[1733845632551,0.30784705,96329.0,96328.0,0.052002]
[1733845632854,0.7206035,96329.0,96328.0,0.00012]
[1733845633537,0.36087445,96329.0,96300.0,0.02306146]
[1733845633846,6e-05,96301.0,96300.0,0.02306146]
[1733845634046,0.36086,96301.0,96300.0,0.02306146]
[1733845634349,6e-05,96301.0,96300.0,0.02306146]
[1733845635141,6e-05,96301.0,96300.0,0.32306146]
[1733845635346,6e-05,96301.0,96300.0,0.68386146]
[1733845635645,0.00107445,96329.0,96328.0,0.051882]
[1733845635854,7.445e-05,96329.0,96328.0,0.051882]
[1733845636043,7.445e-05,96329.0,96328.0,0.352002]
[1733845636242,4.5e-07,96329.0,96328.0,0.352002]
[1733845636641,0.21448161,96380.0,96351.0,0.05187]
[1733845636847,0.69931833,96375.0,96351.0,0.41267]
[1733845637044,5.4e-07,96358.0,96357.0,0.051867]
[1733845637360,0.21448161,96370.0,96361.0,0.051864]
[1733845637543,0.3608,96366.0,96357.0,0.00012]
[1733845637738,8.436e-05,96368.0,96351.0,0.3608]
[1733845637941,8.436e-05,96368.0,96367.0,0.051861]
[1733845638453,0.21448161,96390.0,96361.0,0.1936]
[1733845638750,0.21448161,96371.0,96350.0,0.3608]
[1733845639063,0.26634661,96360.0,96344.0,0.412673]
[1733845639350,0.26634661,96360.0,96338.0,0.00012332]
[1733845639351,6e-05,96345.0,96341.0,0.051875]
[1733845639754,6e-05,96342.0,96341.0,0.051875]
[1733845639956,6e-05,96342.0,96338.0,0.00012332]
[1733845640244,6e-05,96339.0,96338.0,0.00012332]
[1733845641844,0.051886,96321.0,96306.0,0.051894]
[1733845642041,0.3608,96318.0,96304.0,0.3608]
[1733845642242,6e-05,96307.0,96304.0,0.3608]
[1733845642454,6e-05,96305.0,96304.0,0.3608]
[1733845642940,6e-05,96305.0,96303.0,0.051895]
[1733845643141,0.3608,96304.0,96303.0,0.051895]
[1733845643341,6e-05,96304.0,96300.0,0.02306146]
[1733845643551,0.3608,96301.0,96300.0,0.02306146]